bitfinex/quotes_ETHUSD_20250216
["timestamp","ask_amount","ask_price","bid_price","bid_amount"]
[1739692648902,3.71171,2694.2,2693.9,0.55]
[1739692649937,0.8023,2694.5,2693.9,0.55]
[1739692650138,3.71168,2694.2,2693.9,0.55]
[1739692650425,7.42346,2694.2,2693.9,0.55]
[1739692650640,3.71168,2694.2,2693.9,0.55]
[1739692651125,3.71195,2694.0,2693.9,0.55]
[1739692652625,3.71167,2694.2,2693.9,0.55]
[1739692652825,3.71181,2694.1,2693.9,0.55]
[1739692653333,7.42375,2694.1,2693.9,0.55]
[1739692654227,3.71195,2694.0,2693.9,0.55]
[1739692654390,3.71211,2693.9,2693.5,1.3713]
[1739692654586,3.71228,2693.8,2693.5,1.3713]
[1739692654815,3.71211,2693.9,2693.7,0.55]
[1739692656295,3.71222,2693.8,2693.7,0.55]
[1739692656710,3.71211,2693.9,2693.7,0.55]
[1739692658725,3.71222,2693.8,2693.7,0.55]
[1739692658920,0.8023,2694.3,2693.6,0.55]
[1739692659126,3.71181,2694.1,2693.9,0.55]
[1739692659691,3.71182,2694.1,2693.9,0.55]
[1739692660929,3.71177,2694.2,2693.9,0.55]
[1739692661131,7.42355,2694.2,2693.9,0.55]
[1739692661627,3.71177,2694.2,2693.9,0.55]
[1739692662431,3.71176,2694.2,2693.9,0.55]
[1739692662923,3.71157,2694.3,2693.9,0.55]
[1739692663131,3.71157,2694.3,2694.0,1.19732]
[1739692663715,3.7114,2694.4,2694.0,1.19732]
[1739692663940,3.71156,2694.3,2694.0,1.19732]
[1739692665300,0.8148,2694.7,2694.0,0.7711]
[1739692665500,0.8148,2694.7,2693.7,0.508393]
[1739692665501,3.64241,2694.1,2693.5,0.7711]
[1739692665705,3.7121,2693.9,2693.5,0.7711]
[1739692666201,3.71244,2693.7,2693.5,0.7711]
[1739692666404,3.7125,2693.6,2693.5,0.61411]
[1739692666675,3.7125,2693.6,2693.2,0.7711]
[1739692666964,3.71244,2693.7,2693.2,4.4841]
[1739692667236,3.71252,2693.6,2693.3,0.55]
[1739692667606,3.71244,2693.7,2693.2,0.7711]
[1739692667803,3.71268,2693.5,2693.2,0.7711]
[1739692668000,3.71268,2693.5,2693.3,0.55]
[1739692668204,3.71307,2693.2,2692.7,0.7711]
[1739692668401,0.8148,2693.8,2692.8,0.448491]
[1739692668402,3.71291,2693.3,2692.8,0.448491]
[1739692668811,3.71291,2693.3,2692.9,0.55]
[1739692669237,7.4259,2693.3,2692.9,0.55]
[1739692669807,3.71291,2693.3,2692.9,0.55]
[1739692670232,3.71279,2693.4,2693.1,0.55]
[1739692670421,3.71254,2693.6,2693.1,0.73949]
[1739692671326,3.71222,2693.8,2693.3,0.55]
[1739692671514,4.49997,2694.0,2693.3,0.55]
[1739692671515,3.97997,2694.0,2693.3,0.55]
[1739692671714,3.97997,2694.0,2693.5,4.26264]
[1739692671715,0.268,2694.0,2693.5,4.26264]
[1739692671915,0.268,2694.0,2693.7,0.55]
[1739692672242,0.268,2694.0,2693.6,4.5073]
[1739692672243,3.71176,2694.2,2694.0,0.7949]
[1739692672952,3.71175,2694.2,2694.0,0.7949]
[1739692674141,3.71195,2694.0,2693.9,0.55]
[1739692674719,3.71195,2694.0,2693.5,0.7949]
[1739692675118,3.71222,2693.8,2693.6,0.55]
[1739692675318,3.71236,2693.7,2693.2,0.7949]
[1739692675534,3.71236,2693.7,2693.3,0.55]
[1739692676117,3.71251,2693.6,2693.3,0.55]
[1739692676509,7.42511,2693.6,2693.3,0.55]
[1739692677030,3.71277,2693.4,2693.1,0.18949]
[1739692677239,7.42564,2693.4,2693.0,0.7949]
[1739692677444,3.71292,2693.3,2693.1,0.55]
[1739692677813,3.71277,2693.5,2693.1,0.55]
[1739692678565,4.5006,2693.6,2693.1,0.55]
[1739692678747,3.7128,2693.4,2693.1,0.55]
[1739692679061,4.5006,2693.6,2693.1,1.055836]
[1739692679416,3.71274,2693.5,2693.1,1.055836]
[1739692680470,3.7126,2693.6,2693.1,1.055836]
[1739692680762,0.788,2693.8,2693.1,0.55]
[1739692680763,3.71293,2693.3,2693.1,0.55]
[1739692680924,3.71279,2693.4,2693.1,0.55]
[1739692681115,7.42568,2693.4,2693.1,0.55]
[1739692681461,3.71279,2693.4,2693.1,0.55]
[1739692682013,3.71271,2693.5,2693.1,0.55]
[1739692682424,3.71271,2693.5,2693.3,0.55]
[1739692682745,7.42545,2693.5,2693.1,0.55]
[1739692682924,3.71285,2693.4,2693.1,0.55]
[1739692683754,3.71271,2693.5,2693.1,0.55]
[1739692684139,7.42542,2693.5,2693.1,0.55]
[1739692684460,3.71279,2693.4,2693.1,1.055822]
[1739692684877,3.71248,2693.7,2693.1,4.768982]
[1739692685082,0.7637,2694.1,2693.1,1.055822]
[1739692685227,3.7123,2693.8,2693.3,3.71291]
[1739692685558,7.42462,2693.8,2693.5,0.55]
[1739692685756,3.7123,2693.8,2693.5,0.55]
[1739692685999,3.71257,2693.6,2693.3,0.55]
[1739692686361,3.71285,2693.4,2692.8,1.212891]
[1739692686573,3.71285,2693.4,2693.0,0.7644]
[1739692686777,3.71285,2693.4,2693.1,0.997778]
[1739692687090,3.71294,2693.3,2693.0,0.7644]
[1739692687301,3.71308,2693.2,2692.8,1.212891]
[1739692687654,3.71308,2693.2,2692.9,0.55]
[1739692687887,3.71294,2693.3,2692.9,0.55]
[1739692688677,7.42596,2693.3,2692.9,0.55]
[1739692688914,3.71294,2693.3,2692.9,1.0976481]
[1739692689424,0.7637,2693.4,2692.9,1.0976481]
[1739692689581,3.71326,2693.1,2692.9,0.55]
[1739692689964,3.71293,2693.3,2692.9,0.55]
[1739692690158,3.71282,2693.4,2692.9,4.26345]
[1739692690467,3.71282,2693.4,2693.1,0.55]
[1739692690705,3.71269,2693.5,2693.1,0.55]
[1739692690865,3.71251,2693.6,2693.2,0.874094]
[1739692691058,3.71223,2693.8,2693.4,0.7644]
[1739692691493,3.71202,2694.0,2693.5,4.26263]
[1739692691694,3.71187,2694.1,2693.7,0.55]
[1739692691877,3.71199,2694.0,2693.7,0.55]
[1739692692297,3.7121,2693.9,2693.5,0.55]
[1739692692809,3.71223,2693.8,2693.5,0.55]
[1739692692987,3.71244,2693.7,2693.5,0.55]
[1739692694365,3.71214,2693.9,2693.5,0.55]
[1739692694687,3.71227,2693.8,2693.5,0.55]
[1739692694887,3.71222,2693.8,2693.5,0.55]
[1739692695084,3.71167,2694.2,2693.5,0.55]
[1739692695085,4.47617,2693.7,2693.5,0.55]
[1739692695275,3.71264,2693.5,2693.1,0.7644]
[1739692695477,3.71264,2693.5,2693.2,0.447772]
[1739692696101,3.71264,2693.5,2693.3,0.55]
[1739692698715,3.71307,2693.2,2692.9,0.7644]
[1739692699268,3.71307,2693.2,2693.0,0.55]
[1739692699683,8.18994,2693.2,2693.0,0.55]
[1739692699894,4.47677,2693.2,2693.0,0.55]
[1739692700520,0.7637,2693.2,2693.0,0.55]
[1739692700790,3.71319,2693.1,2693.0,0.55]
[1739692703120,3.71319,2693.1,2692.7,4.26373]
[1739692703287,3.71319,2693.1,2692.8,0.502813]
[1739692705615,0.7637,2693.2,2692.8,0.502813]
[1739692705916,4.47676,2693.2,2692.8,0.502813]
[1739692706112,3.71284,2693.4,2692.9,4.26338]
[1739692706312,3.71284,2693.4,2692.9,7.97676]
[1739692706518,3.71284,2693.4,2693.0,0.8479573]
[1739692706719,8.24277,2693.5,2693.0,5.3825673]
[1739692707091,4.53002,2693.5,2693.0,5.3825673]
[1739692707293,0.8173,2693.5,2693.0,1.6692573]
[1739692707524,3.71296,2693.3,2693.0,0.8213]
[1739692707838,3.71277,2693.4,2693.0,0.8213]
[1739692708246,3.71258,2693.6,2693.2,0.55]
[1739692708385,3.71258,2693.6,2692.9,0.55]
[1739692708386,3.71216,2693.9,2693.4,1.3713]
[1739692708595,3.71216,2693.9,2693.4,5.59616439]
[1739692708995,0.8173,2694.0,2693.4,1.88342439]
[1739692709191,3.71229,2693.8,2693.4,1.88342439]
[1739692709644,3.71237,2693.7,2693.4,1.88342439]
[1739692709940,3.71237,2693.7,2693.4,1.3713]
[1739692710096,3.71237,2693.7,2693.2,4.53434]
[1739692710303,3.71229,2693.8,2693.3,4.26288]
[1739692711439,3.71209,2693.9,2693.5,0.55]
[1739692711924,3.71201,2694.0,2693.6,0.8213]
[1739692712136,3.71201,2694.0,2693.7,0.55]
[1739692712612,3.71174,2694.2,2693.7,0.55]
[1739692712810,3.71183,2694.1,2693.7,0.55]
[1739692713121,0.8173,2694.3,2693.7,5.141916]
[1739692713315,3.71174,2694.2,2693.7,5.17903466]
[1739692713517,4.52884,2694.3,2693.9,0.55]
[1739692713723,3.71154,2694.3,2693.9,0.55]
[1739692713940,3.71154,2694.3,2693.8,0.55]
[1739692714100,7.42318,2694.3,2693.9,0.5141916]
[1739692714501,3.71154,2694.3,2693.9,0.5141916]
[1739692714751,3.71167,2694.2,2693.9,0.5141916]
[1739692714900,3.71168,2694.2,2693.9,0.5141916]
[1739692715300,3.71168,2694.2,2693.7,4.26233]
[1739692716068,3.71168,2694.2,2693.9,0.55]
[1739692716335,3.71156,2694.3,2693.9,0.55]
[1739692716536,3.71148,2694.4,2693.9,0.55]
[1739692716698,3.71167,2694.3,2693.9,0.55]
[1739692716895,3.71167,2694.3,2693.9,0.976214]
[1739692717344,3.71171,2694.2,2693.9,0.976214]
[1739692718109,3.71148,2694.4,2693.9,0.976214]
[1739692718310,3.71148,2694.4,2694.0,0.8109]
[1739692718812,7.42296,2694.4,2694.0,0.8109]
[1739692719013,7.42296,2694.4,2694.0,1.3608114]
[1739692719318,3.71169,2694.2,2694.0,1.3608114]
[1739692719501,3.71169,2694.2,2694.0,0.8109]
[1739692720634,3.71154,2694.3,2694.0,0.8109]
[1739692721504,0.7596,2694.7,2694.0,0.8109]
[1739692721837,3.71154,2694.3,2694.0,0.8109]
[1739692723505,3.71163,2694.3,2694.0,0.8109]
[1739692723727,3.71163,2694.3,2694.1,0.55]
[1739692725471,3.71141,2694.4,2694.1,0.55]
[1739692726184,3.71136,2694.5,2694.1,0.5]
[1739692726881,7.42274,2694.5,2694.1,0.5]
[1739692728083,3.71136,2694.5,2694.1,0.5]
[1739692728260,3.71133,2694.5,2694.2,0.8109]
[1739692728560,3.71743324,2694.9,2694.3,4.26151]
[1739692728959,3.7109,2694.8,2694.3,4.26151]
[1739692729548,3.71071,2694.9,2694.3,7.97295]
[1739692729875,3.71071,2694.9,2694.3,7.9729]
[1739692730067,3.71071,2694.9,2694.4,4.5897]
[1739692730231,3.71071,2694.9,2694.5,0.55]
[1739692730435,3.71058,2695.0,2694.5,0.55]
[1739692730647,3.71085,2694.8,2694.5,0.55]
[1739692735008,7.42129,2695.0,2694.5,0.55]
[1739692735295,3.71067,2695.0,2694.5,0.55]
[1739692735593,3.71072,2694.9,2694.5,0.55]
[1739692736399,7.42154,2694.9,2694.5,0.55]
[1739692736698,3.71072,2694.9,2694.5,0.55]
[1739692738053,3.71072,2694.9,2694.5,4.26124]
[1739692739786,3.71066,2695.0,2694.5,4.26124]
[1739692739988,3.71066,2695.0,2694.6,0.765]
[1739692740287,3.71077,2694.9,2694.6,0.765]
[1739692741385,3.89873284,2695.1,2694.6,4.47607]
[1739692741597,3.71058,2695.0,2694.6,0.765]
[1739692741810,3.71078,2694.9,2694.6,0.765]
[1739692742464,3.71078,2694.9,2694.6,1.355476]
[1739692742811,3.71078,2694.9,2694.6,0.765]
[1739692744408,0.18821284,2695.1,2694.6,0.765]
[1739692744409,7.60921284,2695.1,2694.7,0.55]
[1739692744611,3.71045,2695.1,2694.7,0.55]
[1739692745660,0.7596,2695.2,2694.7,4.2609]
[1739692745661,3.71031,2695.2,2694.7,4.2609]
[1739692746006,3.71031,2695.2,2694.9,0.55]
[1739692746292,3.71044,2695.1,2694.9,0.55]
[1739692746456,3.71044,2695.1,2694.9,0.4516]
[1739692746656,3.71024,2695.3,2694.9,0.94475]
[1739692746889,3.71033,2695.2,2694.9,0.4516]
[1739692748579,3.71024,2695.3,2694.9,0.4516]
[1739692748793,3.71037,2695.2,2694.9,0.4516]
[1739692749395,3.70996,2695.5,2695.2,0.55]
[1739692750514,3.70961,2695.7,2695.2,0.55]
[1739692750661,3.70977,2695.6,2695.2,0.55]
[1739692751006,3.70985,2695.6,2695.2,0.55]
[1739692751877,3.70974,2695.6,2695.2,0.55]
[1739692752415,3.70961,2695.7,2695.2,0.55]
[1739692752563,3.70974,2695.6,2695.2,0.55]
[1739692752761,3.70961,2695.7,2695.2,0.55]
[1739692752962,3.70976,2695.6,2695.2,0.55]
[1739692753161,3.70961,2695.7,2695.2,0.55]
[1739692753393,3.70974,2695.6,2695.2,0.55]
[1739692754617,3.70961,2695.7,2695.2,1.052956]
[1739692754816,3.70961,2695.7,2695.4,0.55]
[1739692755463,3.70975,2695.6,2695.4,0.55]
[1739692756209,3.70988,2695.5,2695.4,0.55]
[1739692756877,3.71002,2695.4,2695.3,0.769]
[1739692757223,3.71002,2695.4,2695.3,1.319]
[1739692763920,3.7099,2695.5,2695.3,1.319]
[1739692765231,3.70983,2695.6,2695.3,1.319]
[1739692765391,7.4197,2695.6,2695.3,1.319]
[1739692765591,3.70991,2695.5,2695.3,1.319]
[1739692766606,3.70961,2695.7,2695.3,1.319]
[1739692767030,7.4193,2695.7,2695.3,1.319]
[1739692767224,3.70961,2695.7,2695.3,1.319]
[1739692767446,7.41931,2695.7,2695.3,1.319]
[1739692767731,3.70961,2695.7,2695.3,1.319]
[1739692768224,7.41932,2695.7,2695.3,1.319]
[1739692768728,3.70961,2695.7,2695.3,1.319]
[1739692769342,7.4193,2695.7,2695.3,1.319]
[1739692769628,3.70957,2695.8,2695.4,0.55]
[1739692770201,3.70957,2695.8,2695.4,0.55]
[1739692770429,3.70961,2695.7,2695.4,0.55]
[1739692770840,3.70957,2695.8,2695.4,0.55]
[1739692774849,4.49794,2696.1,2695.6,0.55]
[1739692775058,4.0802,2696.2,2695.6,4.25972]
[1739692775208,7.78923,2696.2,2695.6,4.25972]
[1739692775411,3.70907,2696.1,2695.6,4.25972]
[1739692776250,3.70894,2696.2,2695.7,0.8014]
[1739692776454,7.41799,2696.2,2695.7,0.8014]
[1739692776633,8.98867,2696.4,2695.8,0.58709301]
[1739692776939,3.70879,2696.3,2695.8,4.25946]
[1739692777117,3.70879,2696.3,2695.8,0.55]
[1739692779003,3.70878,2696.3,2695.8,0.55]
[1739692780339,3.70845,2696.6,2696.1,0.8014]
[1739692781042,3.70892,2696.2,2696.1,0.8014]
[1739692782545,3.70873,2696.4,2696.1,0.8014]
[1739692782747,3.70892,2696.2,2695.7,0.55]
[1739692782942,3.70892,2696.2,2695.9,0.55]
[1739692783610,7.41791,2696.2,2695.9,0.55]
[1739692783945,3.70892,2696.2,2695.9,0.55]
[1739692784332,3.70933,2695.9,2695.5,0.7577]
[1739692784918,3.70933,2695.9,2695.6,0.55]
[1739692785335,3.70949,2695.8,2695.6,0.55]
[1739692789119,3.70982,2695.6,2695.1,0.7577]
[1739692789323,3.70989,2695.5,2695.1,0.7577]
[1739692789522,3.70989,2695.5,2695.2,0.446827]
[1739692789722,3.70985,2695.6,2695.3,0.55]
[1739692789917,3.70984,2695.6,2695.3,0.55]
[1739692790118,3.70955,2695.8,2695.5,0.55]
[1739692790439,8.98928,2696.0,2695.5,1.110803]
[1739692790639,8.98928,2696.0,2695.6,0.7979]
[1739692790840,5.28,2696.0,2695.7,0.55]
[1739692791034,3.70901,2696.2,2695.9,0.55]
[1739692791234,3.70912,2696.1,2695.9,0.55]
[1739692791951,3.0,2696.7,2696.1,0.55]
[1739692792150,3.70879,2696.3,2696.1,0.55]
[1739692793757,7.41769,2696.3,2696.1,0.55]
[1739692795153,3.70892,2696.2,2696.1,0.55]
[1739692795357,7.4177,2696.3,2696.1,0.55]
[1739692796058,3.70892,2696.2,2696.1,0.55]
[1739692796565,3.70879,2696.3,2696.1,0.55]
[1739692796926,3.70859,2696.5,2696.1,0.55]
[1739692797175,3.70865,2696.4,2696.1,0.55]
[1739692797378,3.70865,2696.4,2696.1,1.05572]
[1739692797671,3.70879,2696.3,2696.1,1.05572]
[1739692798018,3.70879,2696.3,2696.1,0.55]
[1739692798971,3.70892,2696.2,2696.1,0.55]
[1739692803048,3.70878,2696.3,2696.1,0.55]
[1739692803369,3.70892,2696.2,2696.1,0.55]
[1739692805164,3.70926,2696.0,2695.6,0.7883]
[1739692805349,3.70926,2696.0,2695.7,0.8058903]
[1739692805536,7.41856,2696.0,2695.7,0.8058903]
[1739692805741,3.70926,2696.0,2695.8,0.55]
[1739692806573,3.70909,2696.1,2696.0,0.55]
[1739692808247,3.70901,2696.2,2696.0,0.55]
[1739692808448,0.18284742,2696.5,2696.0,0.55]
[1739692808648,3.7088,2696.3,2696.0,0.55]
[1739692809192,3.7088,2696.3,2696.0,1.054774]
[1739692809779,3.70877,2696.4,2696.0,1.054774]
[1739692809980,3.70851,2696.5,2696.0,1.054774]
[1739692810166,3.70906,2696.1,2696.0,0.55]
[1739692811686,3.70923,2696.0,2695.7,3.8058903]
[1739692811850,3.70946,2695.9,2695.7,0.8058903]
[1739692812356,3.70947,2695.8,2695.6,5.37]
[1739692812945,3.70947,2695.8,2695.7,0.55]
[1739692813145,3.70947,2695.8,2695.6,5.37]
[1739692813991,3.70961,2695.7,2695.6,5.92]
[1739692814166,3.70947,2695.8,2695.6,5.92]
[1739692814494,3.70961,2695.7,2695.6,5.92]
[1739692814782,0.8317,2695.7,2695.1,5.37]
[1739692814985,4.54088,2696.1,2695.5,3.7098]
[1739692815192,3.70899,2696.2,2695.7,0.7737]
[1739692815390,3.70879,2696.3,2695.8,4.25946]
[1739692815593,5.28,2696.4,2696.1,4.48266]
[1739692815966,5.28,2696.4,2696.1,0.7737]
[1739692816180,3.70854,2696.5,2696.2,0.55]
[1739692816496,3.70851,2696.5,2696.2,0.55]
[1739692817413,3.70886,2696.3,2695.8,0.7737]
[1739692817935,3.70866,2696.4,2695.9,0.55]
[1739692818104,3.70866,2696.4,2695.9,4.25932]
[1739692818308,3.70866,2696.4,2696.1,0.55]
[1739692818606,3.70879,2696.3,2696.1,0.55]
[1739692821413,3.70892,2696.2,2696.1,0.55]
[1739692821844,4.50049,2696.3,2696.1,0.55]
[1739692822357,8.20936,2696.3,2696.1,0.55]
[1739692822658,3.70892,2696.2,2696.1,0.55]
[1739692824646,4.50049,2696.3,2696.1,0.55]
[1739692824840,3.70879,2696.3,2696.1,0.55]
[1739692825045,7.41768,2696.3,2696.1,0.55]
[1739692825259,3.70879,2696.3,2696.1,0.55]
[1739692825470,3.70892,2696.2,2696.1,0.55]
[1739692825643,3.70879,2696.3,2695.8,0.7737]
[1739692825644,0.7917,2696.5,2695.8,0.7737]
[1739692825840,3.70927,2696.0,2695.6,5.37]
[1739692826039,3.70968,2695.7,2695.6,1.709577]
[1739692826243,3.70968,2695.7,2695.6,0.8016]
[1739692827081,3.70968,2695.7,2695.3,1.3516]
[1739692827579,7.41938,2695.7,2695.3,1.3516]
[1739692827932,3.70968,2695.7,2695.3,1.3516]
[1739692828429,3.70968,2695.7,2695.3,2.528821]
[1739692829344,7.41936,2695.7,2695.3,2.528821]
[1739692830172,3.70989,2695.5,2695.1,0.8016]
[1739692831870,7.4199,2695.5,2695.2,0.55]
[1739692832173,3.71002,2695.4,2695.2,0.55]
[1739692832771,3.71002,2695.4,2695.0,0.55]
[1739692833197,3.70989,2695.5,2695.0,0.55]
[1739692833376,3.70989,2695.5,2694.9,9.0806]
[1739692833377,3.70973,2695.7,2695.2,0.55]
[1739692833597,3.70979,2695.6,2695.2,0.55]
[1739692833792,3.70989,2695.5,2695.2,0.55]
[1739692834782,3.71003,2695.4,2695.2,0.55]
[1739692834982,7.41989,2695.5,2695.2,0.55]
[1739692835195,3.70989,2695.5,2695.2,0.55]
[1739692835768,3.71016,2695.3,2695.2,0.55]
[1739692835973,3.71009,2695.4,2695.2,0.55]
[1739692836607,0.7917,2695.6,2695.2,0.55]
[1739692836608,3.71016,2695.3,2695.2,0.55]
[1739692837208,3.71032,2695.2,2694.9,6.1406]
[1739692837405,4.52482,2695.2,2694.7,4.48154]
[1739692837700,3.71044,2695.1,2694.8,0.448154]
[1739692838108,3.71044,2695.1,2694.9,0.55]
[1739692838473,3.71044,2695.1,2694.8,0.55]
[1739692839414,4.52482,2695.2,2694.6,3.0]
[1739692839707,0.8145,2695.2,2694.5,3.7706]
[1739692839914,3.71109,2694.7,2694.3,4.48211]
[1739692840216,3.71109,2694.7,2694.4,0.448211]
[1739692840917,0.8145,2694.8,2694.5,0.55]
[1739692841623,4.52535,2694.8,2694.5,0.55]
[1739692842733,3.71098,2694.7,2694.5,0.55]
[1739692843221,3.71098,2694.7,2694.3,0.7706]
[1739692843536,3.71098,2694.7,2694.3,1.16956546]
[1739692844014,3.71098,2694.7,2694.4,0.55]
[1739692846030,3.71116,2694.6,2694.4,0.55]
[1739692846231,3.71098,2694.7,2694.4,0.55]
[1739692846440,7.42209,2694.7,2694.4,0.55]
[1739692846600,4.52548,2694.8,2694.4,0.55]
[1739692846927,3.71106,2694.7,2694.4,0.55]
[1739692847107,3.71098,2694.7,2694.4,0.55]
[1739692847308,4.52545,2694.8,2694.4,0.55]
[1739692847633,3.71101,2694.7,2694.4,0.55]
[1739692847866,3.71113,2694.6,2694.4,0.55]
[1739692848224,3.71113,2694.6,2694.2,0.55]
[1739692848428,3.71113,2694.6,2694.2,2.179758]
[1739692848853,4.52582,2694.5,2694.2,0.55]
[1739692849768,4.52582,2694.5,2693.9,0.7706]
[1739692849769,3.71153,2694.3,2693.9,0.7706]
[1739692850333,0.7894,2694.2,2693.6,7.53378]
[1739692850563,4.50117,2694.2,2693.7,3.71232]
[1739692850766,3.71183,2694.1,2693.6,7.5338]
[1739692851083,3.71183,2694.1,2693.6,8.658448]
[1739692851568,3.71183,2694.1,2693.7,0.55]
[1739692851732,0.7894,2694.4,2694.0,0.55]
[1739692851932,4.50059,2694.6,2694.1,0.55]
[1739692852150,4.50059,2694.6,2694.2,0.8213]
[1739692852461,4.50059,2694.6,2694.1,0.55]
[1739692852462,3.71128,2694.5,2694.1,0.55]
[1739692852664,4.50059,2694.6,2694.1,4.26178]
[1739692853169,0.7894,2694.6,2694.1,0.55]
[1739692853333,3.71136,2694.5,2694.1,0.55]
[1739692855603,4.50055,2694.6,2694.1,4.26174]
[1739692855902,3.71126,2694.5,2694.1,0.55]
[1739692856502,3.71143,2694.4,2694.1,0.55]
[1739692858769,3.71153,2694.4,2694.1,0.55]
[1739692860206,3.71154,2694.3,2694.1,0.55]
[1739692860900,3.71126,2694.5,2694.1,0.55]
[1739692861106,4.49992,2695.1,2694.5,0.55]
[1739692861272,3.71079,2694.9,2694.5,0.55]
[1739692861605,4.49994,2695.1,2694.4,0.55]
[1739692861806,3.71072,2694.9,2694.4,4.26129]
[1739692862003,3.71072,2694.9,2694.4,1.429411]
[1739692862168,7.42155,2694.9,2694.4,1.429411]
[1739692862373,3.71072,2694.9,2694.4,4.26128]
[1739692863092,7.42151,2694.9,2694.4,4.26128]
[1739692863292,3.71072,2694.9,2694.4,4.26128]
[1739692863492,3.71095,2694.8,2694.4,0.55]
[1739692864436,4.50051,2694.7,2694.4,0.55]
[1739692865393,0.7894,2694.7,2694.4,0.55]
[1739692865589,3.7106,2695.0,2694.6,0.779]
[1739692866020,7.42128,2695.0,2694.6,0.779]
[1739692866226,3.71071,2694.9,2694.6,0.779]
[1739692866537,3.7106,2695.0,2694.6,4.49009]
[1739692866730,3.7106,2695.0,2694.6,0.779]
[1739692867023,0.7923,2695.2,2694.7,0.55]
[1739692867223,0.7923,2695.2,2694.8,3.71085]
[1739692867941,0.7923,2695.2,2694.7,0.55]
[1739692868151,0.7923,2695.2,2694.3,0.779]
[1739692868465,3.71113,2694.6,2694.2,5.37]
[1739692868621,4.5034,2694.7,2694.1,0.779]
[1739692868622,3.71128,2694.5,2694.1,0.779]
[1739692868827,3.71128,2694.5,2694.2,0.55]
[1739692869144,3.71128,2694.5,2694.1,0.55]
[1739692870121,3.71149,2694.4,2693.9,4.49108]
[1739692870343,4.50386,2694.3,2693.7,9.86128]
[1739692870543,4.50386,2694.3,2693.8,5.1819328]
[1739692870775,4.50386,2694.3,2693.9,0.55]
[1739692871872,3.71177,2694.2,2693.7,6.149]
[1739692872043,4.50386,2694.3,2693.7,0.779]
[1739692872241,3.71188,2694.1,2693.4,9.0827]
[1739692872445,3.71181,2694.1,2693.6,3.7125]
[1739692873876,3.71181,2694.1,2693.7,0.55]
[1739692874189,3.71196,2694.0,2693.7,0.55]
[1739692874575,0.7923,2694.3,2693.5,0.779]
[1739692874783,3.71209,2693.9,2693.5,0.779]
[1739692875277,3.71226,2693.8,2693.4,0.55]
[1739692875450,3.71226,2693.8,2693.4,2.479095]
[1739692875944,4.50439,2693.9,2693.4,0.55]
[1739692875945,3.71244,2693.7,2693.4,0.55]
[1739692876386,7.4249,2693.7,2693.3,8.329]
[1739692876687,3.71251,2693.6,2693.3,8.329]
[1739692876884,3.71244,2693.7,2693.3,0.55]
[1739692877991,4.50447,2693.9,2693.3,0.55]
[1739692878289,4.50418,2694.1,2693.5,4.26257]
[1739692878593,4.50418,2694.1,2693.6,3.71241]
[1739692878759,8.21607,2694.1,2693.6,3.70568676]
[1739692878954,4.50418,2694.1,2693.5,0.55]
[1739692879158,3.71202,2694.0,2693.5,0.55]
[1739692879352,3.71202,2694.0,2693.5,4.26263]
[1739692880190,7.42404,2694.0,2693.5,4.26263]
[1739692880348,3.71215,2693.9,2693.5,0.55]
[1739692881193,3.71197,2694.0,2693.5,0.55]
[1739692881399,0.7923,2694.1,2693.5,0.55]
[1739692881603,3.71209,2693.9,2693.5,0.55]
[1739692881779,4.50423,2694.1,2693.5,0.55]
[1739692881968,4.50423,2694.1,2693.5,4.26263]
[1739692881969,3.71196,2694.0,2693.5,4.26263]
[1739692882697,3.71223,2693.8,2693.5,0.55]
[1739692882901,0.7906,2694.1,2693.7,0.55]
[1739692883112,6.0706,2694.3,2693.9,3.71202]
[1739692883267,5.28,2694.3,2693.8,3.71211]
[1739692883568,5.28,2694.3,2693.9,3.71196]
[1739692883764,0.7906,2694.5,2694.1,0.8043]
[1739692884105,0.7906,2694.7,2694.2,0.55]
[1739692884302,0.7906,2694.7,2694.2,4.26158]
[1739692884500,0.7906,2694.7,2694.3,3.71153]
[1739692885620,12.70186,2694.8,2694.3,3.71153]
[1739692885774,5.28,2694.8,2694.4,0.55]
[1739692885968,0.7906,2694.9,2694.5,3.71116]
[1739692886192,4.50111,2695.1,2694.6,0.55]
[1739692886811,0.7906,2695.1,2694.2,4.5159]
[1739692887023,3.71096,2694.8,2694.3,0.55]
[1739692887228,7.42158,2694.9,2694.3,4.26145]
[1739692887670,7.42157,2694.9,2694.3,4.26145]
[1739692887870,4.50109,2695.1,2694.4,3.71136]
[1739692888113,0.7906,2695.3,2694.7,1.3543]
[1739692888403,4.50083,2695.3,2694.8,3.71072]
[1739692888601,4.50083,2695.3,2694.7,1.3543]
[1739692888808,3.71035,2695.2,2694.7,1.3543]
[1739692888976,3.71035,2695.2,2694.7,5.06527]
[1739692889398,0.7906,2695.3,2694.8,3.71083]
[1739692889598,0.7906,2695.3,2694.7,1.3543]